Cogmind - Beta 16.1 @@@ ROGUE MODE // 2026.04.10 @ 00:17:23 Player: FALKE Result: Destroyed by as-29012 with Assembled Blade Performance ------------- Evolutions (0) 0 Regions Visited (0) 0 Robots Destroyed (0) 0 Value Destroyed (0) 0 Prototype IDs (0) 0 Alien Tech Used (0) 0 Bonus (0) 0 TOTAL SCORE: 0 Bonus ------- None Cogmind --------- Core Integrity 0/250 Matter 275/300 Energy 100/100 System Corruption 0% Temperature Cool (0) Movement Core (100) Ox1 Location -11/Scrapyard Parts ------- > --- POWER (1) -------- (None) > --- PROPULSION (2) --- (None) > --- UTILITY (2) ------ Small Storage Unit > --- WEAPON (2) ------- Light Assault Rifle > --- INVENTORY (8) ---- Aluminum Leg Medium Matter Pod (100) Improved Terrain Scanner Small Laser Peak State ------------ > --- POWER ------------ Ion Engine > --- PROPULSION ------- Wheel Compact Wheel > --- UTILITY ---------- Small Storage Unit > --- WEAPON ----------- Small Laser Mining Laser > --- INVENTORY -------- Aluminum Leg Medium Matter Pod Improved Terrain Scanner [Rating: 6] Favorites ----------- Power Ion Engine Engine Ion Engine Propulsion Compact Wheel Wheel Compact Wheel Utility Small Storage Unit Storage Small Storage Unit Weapon Small Laser Energy Gun Small Laser Ballistic Gun Light Assault Rifle Special Weapon Mining Laser Build | -11 ------- Run | Yrd Slots Evolved . | . Power . | . Propulsion . | . Utility . | . Weapon . | . Parts Attached 9 | 9 Power 1 | 1 Engine 1 | 1 Core . | . Reactor . | . Propulsion 3 | 3 Treads . | . Leg . | . Wheel 3 | 3 Hover . | . Flight . | . Utility 1 | 1 Device . | . Storage 1 | 1 Processor . | . Hackware . | . Protection . | . Artifact . | . Weapon 4 | 4 Energy Gun 1 | 1 Energy Cannon . | . Ballistic Gun 2 | 2 Ballistic Cannon . | . Launcher . | . Special Weapon 1 | 1 Impact Weapon . | . Slashing Weapon . | . Piercing Weapon . | . Special Melee Weapon . | . Unidentified Prototypes . | . Parts Lost 6 | 6 Power 1 | 1 Propulsion 3 | 3 Utility . | . Weapon 2 | 2 Highest Loss Streak 5 | 5 To Critical Strikes . | . Average Backups 1 | 1 Power . | . Propulsion . | . Utility . | . Weapon . | . Tool/Special . | . Unused Backups 3 | 3 Power . | . Propulsion 1 | 1 Utility 2 | 2 Weapon . | . Tool/Special . | . Average Slot Usage (%) . | . Peak Build Rating 6 | 6 Average Rating 2 | 2 On Entrance . | . Avg Prop Armor Cover (%) . | . Naked Turns . | . Heaviest Build 12 | 12 Greatest Support 32 | 32 Greatest Overweight (x) . | . Average Overweight (x) . | . Largest Inventory Capacity 8 | 8 Average Capacity 5 | 5 Most Carried 5 | 5 Average Carried 1 | 1 Final Capacity 8 | 8 Final Carried 4 | 4 Class Distribution -------------------- None Dominant Class ---------------- None Resources | -11 ----------- Run | Yrd Matter Collected 255 | 255 Remotely . | . Salvage Created 3 | 3 Parts . | . Haulers Intercepted . | . Recyclers Shooed . | . Parts Field Recycled . | . Retrieved Matter . | . Parts Self-Destructed . | . Prevented . | . Parts Restored . | . Kills | -11 ------- Run | Yrd Combat Hostiles Destroyed 3 | 3 Guns 3 | 3 Classes Destroyed 1 | 1 Assembled 3 | 3 Best Kill Streak 2 | 2 Combat Bots Only 2 | 2 Max Kills in Single Turn 1 | 1 Gunslinging . | . Exploded . | . Melee . | . Uniques/NPCs Destroyed . | . Combat | -11 -------- Run | Yrd Hostile Shots Fired 34 | 34 Missed 6 | 6 Hits 28 | 28 Melee 24 | 24 Projectile 4 | 4 Damage Taken 790 | 790 Core 267 | 267 Absorbed by Shields . | . Core Remaining (%) . | . Volleys Fired 19 | 19 Largest 1 | 1 Hottest 100 | 100 Shots Fired 19 | 19 Gun 17 | 17 Cannon . | . Launcher . | . Special 2 | 2 Kinetic 8 | 8 Thermal 11 | 11 Explosive . | . Electromagnetic . | . Robot Hit Streak 9 | 9 Robot Miss Streak 4 | 4 Penetration Max . | . Secondary Targets . | . Shots Hit Robots 13 | 13 Core Hits 6 | 6 Critical Kills . | . Critical Parts Destroyed . | . Critical Strikes . | . Melee Attacks . | . Impact . | . Slashing . | . Piercing . | . Sneak Attacks . | . Combat Hostiles . | . Follow-up Attacks . | . Damage Inflicted 134 | 134 Guns 134 | 134 Cannons . | . Explosions . | . Melee . | . Ramming . | . Kinetic 40 | 40 Thermal 94 | 94 Explosive . | . Electromagnetic . | . Impact . | . Slashing . | . Piercing . | . Highest Corruption . | . Average Corruption . | . Corruption Purged . | . Corruption Blocked . | . Overload Shots . | . Overflow Damage . | . Projectiles . | . Explosions . | . Melee . | . Knockbacks . | . Impact . | . Kinetic . | . Secondary . | . Self-Inflicted Damage . | . Shots . | . Rammed . | . Targets Rammed . | . Kicked . | . Crushed . | . Highest Temperature 20 | 20 Average Temperature 11 | 11 Received Heat Transfer . | . Siege Activations . | . Martial Activations . | . Shielding Activations . | . Robots Disrupted . | . Combat Hostiles . | . Robots Corrupted . | . Combat Hostiles . | . Parts Fried . | . Impact Corruptions . | . Robots Melted . | . Combat Hostiles . | . Parts Melted . | . Heat Transferred 225 | 225 Parts Sabotaged . | . Parts Stolen . | . Parts Stripped . | . Power Chain Reactions . | . Alert | -11 ------- Run | Yrd Maximum Alert Level . | . Low Security (%) 100 | 100 Level 1 . | . Level 2 . | . Level 3 . | . Level 4 . | . Level 5 . | . High Security . | . Max Security . | . Peak Influence . | . Initial . | . Average . | . Influence Increases . | . Influence Decreases . | . Squads Dispatched . | . Investigation . | . Extermination . | . Reinforcement . | . Assault . | . Garrison . | . Intercept . | . Searches Triggered . | . Construction Impeded . | . Haulers Reinforced . | . Active Scanning Responses . | . Cargo Convoy Interrupts . | . Stealth | -11 --------- Run | Yrd Distress Signals . | . Communications Jammed . | . Distress Signals . | . Times Spotted 4 | 4 Peak Tracking Total 2 | 2 Tactical Retreats . | . Traps | -11 ------- Run | Yrd Traps Triggered . | . Indirectly . | . Trap Hack Attempts . | . Triggered . | . Disarmed . | . Reprogrammed . | . Reused . | . Traps Extracted . | . Installed . | . Triggered . | . Machines | -11 ---------- Run | Yrd Machines Disabled . | . Max in Single Turn . | . Machines Repaired . | . Machines Dismantled . | . Machines Sabotaged . | . Overloaded Fab Kills . | . Hacking | -11 --------- Run | Yrd Machines Accessed . | . Terminals . | . Fabricators . | . Repair Stations . | . Recycling Units . | . Scanalyzers . | . Garrison Access . | . Total Hacks . | . Successful . | . Failed . | . Catastrophic . | . Database Lockouts . | . Manual . | . Terminals . | . Fabricators . | . Repair Stations . | . Recycling Units . | . Scanalyzers . | . Garrison Access . | . Terminal Hacks . | . Fabricator Hacks . | . Repair Station Hacks . | . Recycling Unit Hacks . | . Scanalyzer . | . Garrison Access Hacks . | . Unauthorized Hacks . | . Terminals . | . Fabricators . | . Repair Stations . | . Recycling Units . | . Scanalyzers . | . Garrison Access . | . Data Cores Recovered . | . Used . | . Hacking Detections . | . Full Trace Events . | . Feedback Events . | . Feedback Blocked . | . Robot Schematics Acquired . | . Robots Built . | . Authchips . | . Time . | . Total Robot Build Rating . | . Part Schematics Acquired . | . Parts Built . | . Authchips . | . Time . | . Total Part Build Rating . | . Part Studies Acquired . | . Parts Repaired . | . Time . | . Parts Recycled . | . Recycled Matter . | . Retrieved Matter . | . Retrieved Components . | . Parts Scanalyzed . | . Part Schematics Acquired . | . Parts Damaged . | . Bothacking | -11 ------------ Run | Yrd Used RIF Installer . | . Robots Hacked . | . Non-combat . | . Combat . | . Robot Hacks Applied . | . Relay Couplers Released . | . Fabnet Peak Effective % . | . Robots Rewired . | . Allies Hacked . | . Hacks Repelled . | . Allies | -11 -------- Run | Yrd Total Allies . | . Largest Group . | . Highest-Rated Group . | . Highest-Rated Ally . | . Total Orders . | . Ally Attacks . | . Total Damage . | . Kills . | . Allies Corrupted . | . Allies Melted . | . Intel | -11 ------- Run | Yrd Active Infowar (turns) . | . Robot Analysis Total . | . Derelict Logs Recovered . | . Drone Launches . | . Drone Recoveries . | . Exploration | -11 ------------- Run | Yrd Turns Passed 4594 | 4594 Spaces Moved 201 | 201 Core 4 | 4 Treads . | . Legs . | . Wheels 197 | 197 Hover . | . Flight . | . Fastest Speed 50 | 50 Average Speed 90 | 90 Slowest Speed 100 | 100 Overloaded Moves . | . Propulsion Burnouts . | . Robots Hopped . | . Potential Cave-ins 1 | 1 Cave-ins Triggered . | . Exploration Rate (%) 15 | 15 Regions Visited . Branch Regions . Pre-discovered Areas . | . Known Exits Taken . | . Unknown Exits Taken . | . Scrap Searched . | . Spaces Dug 2 | 2 Terrain Destroyed 2 | 2 Melee . | . Projectile 2 | 2 AOE . | . Terrain Rammed . | . Walls Destroyed . | . Machines Disabled . | . Actions | -11 --------- Run | Yrd Total 4590 | 4590 Wait 4349 | 4349 Move 201 | 201 Hop . | . Pick Up 12 | 12 Fast Attach . | . Attach 8 | 8 Detach . | . Swap 1 | 1 Drop . | . Fire 19 | 19 Melee . | . Ram . | . Kick . | . Crush . | . Escape Stasis . | . Rewire . | . Trap . | . Miscellaneous . | . Route ------- -11/Scrapyard (discovered 1 exit: [*Mat]) History --------- Turn | Location | Event 11 | -11/Scrapyard | Discovered new exit (range 15) 4204 | -11/Scrapyard | Assembled infested the area 4566 | -11/Scrapyard | Core integrity fell below 50% 4581 | -11/Scrapyard | Core integrity fell below 20% 4595 | -11/Scrapyard | Destroyed by as-29012 with Assembled Blade Last Messages --------------- 04346_ Acquired Wheel. 04352_ T-07 Excavator destroyed. 04379_ as-13000 destroyed. 04389_ Acquired 10 matter. 04395_ Acquired 60 matter. 04402_ Acquired 20 matter. 04404_ Acquired Mining Laser. 04415_ Acquired 9 matter. 04438_ Acquired 25 matter. 04447_ The unstable cave ceiling collapses. 04467_ Acquired 27 matter. 04468_ Acquired 18 matter. 04470_ Acquired Med. Matter Pod. 04538_ Acquired Assault Rifle. 04545_ Wheel destroyed. 04552_ Assault Rifle destroyed. 04571_ Acquired Lgt. Assault Rifle. 04573_ Ion Engine destroyed. 04580_ Mining Laser destroyed. 04583_ Com. Wheel destroyed. Map ----- +----------------------------------------------------+ | ####?????????????????????? | | ???????######## #### # ##?????????????????????? | | ??????????##### ### #?????????????????????? | | ??????????# # # #?????????????????????? | | ??????????# # ###?????????????????????? | | ??????????# # ##???????????????????????? | | ??????????# ## #????????????????????????? | | ??????????# ## #????????????????????????? | | ??????????# ## %##### #??????????? | | ??????????# ## #??????????? | | #####?????# ## ##### ##?????????????????? | | # # ########### # ### #???????????????????????? | | #???????????????????????? | | #???????????????????????? | | ############# #???????????????????????? | | #???????###### ######????????????????????? | | #???????# #????????????????????? | | #???????# #????????????????????? | | ######### #????????????????????? | | ## #????????????????????? | | ## #????????????????????? | | ###### ####### ######????????????????????? | | ?????# #???## #######????????????????????? | | ?????# #???# = #????????????????????? | | ?????# #???# a #?????? ?????????? | | ?????# ##### @ ##### % ????????? | | ?????# ! * = % ????????? | | ?????# % ????????? | | ?????# !##### ##### = ##### < ????????? | | ?????#= #???# #???# #?????? ?????????? | | ?????# #???# #???# #????????#???????????? | | ?????# #???# #???#### ####????????????????????? | | ?????# #???# ######## #???????????????????????? | | ????? #???# ## # #???????????????????????? | | ????? #???# ## #???????????????????????? | | ????#####??? # #???????????????????????? | | ???????????? # #! #???????????????????????? | | ???????????? #######=%#???????????????????????? | | ???????????? #????? ???????????????????????? | | ????????????# ##????# ??????????????????????? | | ????????????? ??????# ?????????????????????? | | ????????????? ??????# ###????????????????????? | | ????????????? ??????######??????????????????????? | | ?????????????????????????????????????????????????? | | ?????????????????????????????????????????????????? | | ?????????????????????????????????????????????????? | | ?????????????????????????????????????????????????? | | ?????????????????????????????????????????????????? | | ?????????????????????????????????????????????????? | | ?????????????????????????????????????????????????? | +----------------------------------------------------+ Best States ------------- Heat Dissipation 25 Energy Generation 10 Energy Capacity 250 Matter Stores 300 Matter Capacity 300 Sight Range 16 Terrain Scan Density 10 Evasion (%) 42 Item Schematics ----------------- None Robot Schematics ------------------ None Fabricated ------------ Nothing Repaired ---------- Nothing Studied --------- None Alien Tech Used ----------------- None Achievements -------------- None Challenges ------------ None Game ------ Seed SchematicShockChronowheel Manual? 0 Play Time 00:12:58 Cumulative 18.3 hours Start 2026.04.10 @ 00:10:14 End 2026.04.10 @ 00:17:23 Sessions 0 Manual Loads 0 Difficulty Rogue Special Mode None Game No. 27 Rogue 24 Adventurer 3 Explorer 0 Win Type - Total 0 Types 0/0/0/0/0/0/0/0/0/0 Lore% 13 Gallery% 17 Achievement% 17 Wizard Run 0 Options --------- Layout 0 ASCII 0 Keyboard 0 Movement Mouse Keybinds 0 Fullscreen 1 Font 24/Terminus Map View 38x25 Zoom Use 100% Tactical HUD 1 Map Filters NONE Filters NONE Steam 1 RUN: b104834c-23b1-4498-b0fb-ba075fc7ad82